bitfinex/quotes_SOLUSD_20250313
["timestamp","ask_amount","ask_price","bid_price","bid_amount"]
[1741847288008,24.34324642,123.79,123.75,0.063]
[1741847288206,24.34324642,123.78,123.75,0.063]
[1741847288419,24.62756956,123.76,123.75,0.063]
[1741847288716,111.3715,123.8,123.75,0.063]
[1741847289038,24.34324642,123.78,123.75,0.063]
[1741847289215,24.34324642,123.77,123.75,0.063]
[1741847289911,28.2715,123.8,123.75,0.063]
[1741847290217,8.0775,123.8,123.75,0.063]
[1741847290517,32.42074642,123.8,123.75,0.063]
[1741847290702,24.34324642,123.79,123.75,0.063]
[1741847291302,8.0775,123.8,123.75,0.063]
[1741847291498,0.03,123.82,123.79,24.34324642]
[1741847291704,0.03,123.82,123.81,24.34324642]
[1741847291904,0.03,123.82,123.81,7.3]
[1741847292504,0.03,123.82,123.81,31.64324642]
[1741847293909,0.03,123.85,123.81,31.64324642]
[1741847294105,0.03,123.85,123.82,24.34324642]
[1741847294430,0.03,123.85,123.83,38.92762609]
[1741847295334,0.03,123.85,123.82,38.92762609]
[1741847295911,0.03,123.85,123.81,46.22762609]
[1741847296432,0.03,123.85,123.81,7.3]
[1741847297115,0.28432314,123.84,123.81,7.3]
[1741847297620,38.95762609,123.85,123.81,7.3]
[1741847297807,39.21194923,123.84,123.81,7.3]
[1741847298121,38.92762609,123.82,123.77,234.01363431]
[1741847298323,38.92762609,123.82,123.77,281.0203604]
[1741847298522,38.92762609,123.83,123.77,281.0203604]
[1741847298721,38.92762609,123.83,123.78,0.063]
[1741847301209,38.92762609,123.83,123.82,25.09084087]
[1741847301632,0.03,123.85,123.82,25.09084087]
[1741847301953,38.95762609,123.85,123.81,50.23012585]
[1741847302443,38.92762609,123.84,123.81,50.23012585]
[1741847303540,38.92762609,123.83,123.81,50.23012585]
[1741847303722,0.17216157,123.85,123.81,50.23012585]
[1741847303723,38.92762609,123.84,123.81,50.23012585]
[1741847305132,38.92762609,123.84,123.8,15.3771]
[1741847308433,0.17216157,123.85,123.8,15.3771]
[1741847308623,0.28432314,123.84,123.8,15.3771]
[1741847308823,39.21194923,123.84,123.8,15.3771]
[1741847309023,38.92762609,123.84,123.8,15.3771]
[1741847310517,47.00252609,123.84,123.8,7.3]
[1741847310718,38.92762609,123.84,123.8,7.3]
[1741847310925,47.00252609,123.84,123.79,8.0779]
[1741847311126,47.00252609,123.84,123.8,0.063]
[1741847311323,38.92762609,123.84,123.8,0.063]
[1741847312441,39.24194923,123.85,123.8,0.063]
[1741847313047,38.95762609,123.85,123.8,0.063]
[1741847313643,0.31432314,123.85,123.8,0.063]
[1741847313831,39.24194923,123.85,123.8,0.063]
[1741847314030,38.95762609,123.85,123.8,0.063]
[1741847314343,24.36748787,123.85,123.8,0.063]
[1741847314720,0.03,123.85,123.8,0.063]
[1741847314919,0.03,123.85,123.8,24.40048787]
[1741847315145,0.03,123.85,123.8,32.47758787]
[1741847317140,8.0749,123.84,123.8,12.68154029]
[1741847317324,32.41238787,123.84,123.8,12.68154029]
[1741847317525,8.0749,123.84,123.8,12.68154029]
[1741847318036,32.41238787,123.84,123.8,12.68154029]
[1741847318434,32.41238787,123.84,123.8,0.063]
[1741847319141,8.0762,123.82,123.8,0.063]
[1741847319530,32.41328787,123.83,123.8,0.063]
[1741847320329,0.14216157,123.83,123.8,0.063]
[1741847320524,0.28432314,123.83,123.8,0.063]
[1741847321137,8.35992314,123.83,123.8,0.063]
[1741847322151,24.36748787,123.85,123.8,0.063]
[1741847322354,32.44198787,123.85,123.8,0.063]
[1741847324036,8.38962314,123.84,123.8,0.063]
[1741847325146,0.03,123.84,123.8,24.40048787]
[1741847325852,0.03,123.84,123.8,0.063]
[1741847326038,0.03,123.84,123.8,24.40048787]
[1741847326447,0.03,123.85,123.84,28.0299]
[1741847326639,0.03,123.94,123.89,24.33748787]
[1741847326832,0.03,123.94,123.89,31.65748787]
[1741847327362,0.31432314,123.94,123.89,31.65748787]
[1741847327566,0.31432314,123.94,123.89,39.72908787]
[1741847327867,0.31432314,123.94,123.9,24.33748787]
[1741847328752,0.03,123.94,123.91,24.33748787]
[1741847329954,0.03,123.94,123.91,32.40778787]
[1741847331053,0.03,123.94,123.91,24.33748787]
[1741847331569,25.87248787,123.92,123.85,62.84866614]
[1741847331765,24.33748787,123.9,123.85,87.18615401]
[1741847331956,24.33748787,123.9,123.86,7.32]
[1741847336650,0.28432314,123.92,123.87,24.33748787]
[1741847336856,0.03,123.94,123.9,24.33748787]
[1741847337063,0.03,123.94,123.91,7.32]
[1741847337765,0.03,123.92,123.91,7.32]
[1741847337968,0.03,123.92,123.91,31.65748787]
[1741847338150,0.03,123.92,123.91,39.72778787]
[1741847338351,0.03,123.92,123.91,31.65748787]
[1741847338751,0.03,123.92,123.91,7.32]
[1741847342452,0.03,123.92,123.91,39.72778787]
[1741847342773,0.03,123.92,123.91,7.32]
[1741847344357,0.03,123.92,123.91,39.72778787]
[1741847345371,0.03,123.92,123.91,15.3903]
[1741847346168,0.03,123.92,123.91,7.32]
[1741847346677,0.03,123.92,123.91,15.3903]
[1741847346968,0.03,123.92,123.91,7.32]
[1741847348254,0.03,123.92,123.91,15.3903]
[1741847349473,0.03,123.92,123.91,39.72778787]
[1741847350055,0.03,123.92,123.91,15.3903]
[1741847350354,0.03,123.92,123.91,7.32]
[1741847350867,0.03,123.92,123.91,15.3903]
[1741847356172,0.03,123.92,123.91,20.0]
[1741847356478,0.03,123.92,123.9,7.3]
[1741847356979,32.40648787,123.93,123.9,7.3]
[1741847357972,8.0987,123.94,123.9,7.3]
[1741847358270,24.36748787,123.94,123.9,7.3]
[1741847358973,24.36748787,123.94,123.89,24.33748787]
[1741847359178,24.36748787,123.94,123.9,15.371]
[1741847360076,8.0984,123.94,123.9,15.371]
[1741847360480,32.43588787,123.94,123.9,7.3]
[1741847361073,24.36748787,123.94,123.9,7.3]
[1741847361578,32.43598787,123.94,123.9,7.363]
[1741847362591,24.36748787,123.94,123.9,15.4339]
[1741847362881,0.03,123.94,123.92,24.33748787]
[1741847363083,0.03,123.94,123.91,24.33748787]
[1741847363382,0.03,123.94,123.92,8.0697]
[1741847363963,0.03,123.94,123.9,31.70048787]
[1741847364162,0.03,123.94,123.9,15.4337]
[1741847364374,0.03,123.94,123.9,7.363]
[1741847364576,0.03,123.94,123.91,7.28]
[1741847365563,24.33748787,123.92,123.9,0.063]
[1741847365764,0.03,123.94,123.9,0.063]
[1741847365765,24.33748787,123.91,123.9,0.063]
[1741847366368,24.33748787,123.92,123.9,0.063]
[1741847367575,24.33748787,123.93,123.9,0.063]
[1741847367771,24.33748787,123.92,123.9,0.063]
[1741847367973,24.33748787,123.91,123.9,0.063]
[1741847368367,8.069,123.93,123.9,0.063]
[1741847368566,32.40648787,123.93,123.9,0.063]
[1741847368984,24.33748787,123.92,123.9,0.063]
[1741847369279,8.069,123.93,123.9,0.063]
[1741847369477,32.40648787,123.93,123.9,0.063]
[1741847369784,24.33748787,123.92,123.9,0.063]
[1741847370378,32.40648787,123.93,123.9,0.063]
[1741847370580,0.03,123.94,123.93,20.0]
[1741847374288,0.063,123.95,123.93,136.62551101]
[1741847374582,0.03,123.97,123.96,20.0]
[1741847374788,0.03,123.97,123.96,59.78458787]
[1741847375081,0.03,123.97,123.96,51.71748787]
[1741847375488,0.03,123.97,123.96,59.78458787]
[1741847376589,0.03,123.97,123.96,102.7717246]
[1741847377067,0.03,123.98,123.96,84.12207574]
[1741847377267,0.03,123.98,123.97,67.3246246]
[1741847377463,0.03,123.98,123.97,461.6246246]
[1741847377683,0.03,123.99,123.97,461.6246246]
[1741847377880,0.03,123.99,123.98,24.33748787]
[1741847378691,0.03,123.99,123.98,32.40328787]
[1741847379080,0.03,123.99,123.98,51.05293673]
[1741847379285,0.03,123.99,123.98,32.40328787]
[1741847381087,0.03,123.99,123.98,51.05293673]
[1741847382993,0.03,123.99,123.98,150.35293673]
[1741847383206,0.03,123.99,123.98,131.70328787]
[1741847385302,0.03,123.99,123.98,123.63748787]
[1741847385473,0.03,123.99,123.98,51.67748787]
[1741847386770,0.03,123.99,123.98,59.74328787]
[1741847387876,0.03,123.99,123.98,51.67748787]
[1741847388677,0.03,123.99,123.98,59.74328787]
[1741847389078,0.03,123.99,123.98,52.40328787]
[1741847389279,0.03,123.99,123.98,59.72328787]
[1741847389903,0.03,123.99,123.98,160.67293673]
[1741847390203,0.03,123.99,123.98,142.02328787]
[1741847391374,0.03,123.99,123.98,133.95748787]
[1741847391581,0.03,123.99,123.98,27.32]
[1741847391889,0.03,123.99,123.98,20.0]
[1741847392695,0.03,123.99,123.97,31.65748787]
[1741847393398,0.03,123.99,123.97,7.32]
[1741847394902,0.03,123.99,123.97,31.65748787]
[1741847396005,0.03,123.99,123.97,24.33748787]
[1741847396209,0.03,123.99,123.98,24.33748787]
[1741847397306,0.03,123.99,123.98,32.40328787]
[1741847401637,0.03,123.99,123.97,82.363]
[1741847401911,24.36748787,123.99,123.97,0.063]
[1741847402083,26.02638787,123.99,123.97,0.063]
[1741847403110,8.0658,123.98,123.97,0.063]
[1741847403510,51.33725987,123.98,123.97,0.063]
[1741847406196,24.33748787,123.95,123.91,89.663]
[1741847406395,24.33748787,123.95,123.91,7.363]
[1741847407208,24.33748787,123.94,123.91,0.063]
[1741847407508,24.33748787,123.92,123.91,0.063]
[1741847407910,43.27145987,123.92,123.91,0.063]
[1741847408411,0.28432314,123.89,123.85,0.063]
[1741847408597,24.33748787,123.88,123.85,0.063]
[1741847409009,24.33748787,123.87,123.85,0.063]
[1741847409188,43.27145987,123.86,123.85,0.063]
[1741847409394,51.34505987,123.86,123.85,0.063]
[1741847409611,32.41108787,123.86,123.85,0.063]
[1741847409913,24.33748787,123.86,123.85,0.063]
[1741847410120,24.47964944,123.87,123.85,0.063]
[1741847410294,0.14216157,123.87,123.85,0.063]
[1741847410495,24.47964944,123.87,123.85,0.063]
[1741847410695,24.47964944,123.86,123.85,0.063]
[1741847410918,24.33748787,123.86,123.85,0.063]
[1741847411490,24.62181101,123.87,123.85,0.063]
[1741847411913,24.47964944,123.89,123.85,0.063]
[1741847412099,24.62181101,123.89,123.85,0.063]
[1741847412997,25.90568787,123.91,123.85,24.40048787]
[1741847413622,24.33748787,123.92,123.87,24.33748787]
[1741847413797,24.33748787,123.92,123.87,7.32]
[1741847413994,24.33748787,123.91,123.87,7.32]
[1741847414208,24.33748787,123.92,123.87,7.32]
[1741847414605,6.25236157,123.93,123.87,7.32]
[1741847414606,24.62181101,123.91,123.87,7.32]
[1741847415416,24.62181101,123.91,123.87,15.3925]
[1741847415810,32.69221101,123.91,123.87,7.32]
[1741847416193,24.33748787,123.91,123.87,7.32]
[1741847416717,6.39452314,123.93,123.87,39.73038787]
[1741847416718,24.33748787,123.93,123.87,39.73038787]
[1741847417494,24.33748787,123.92,123.87,15.3929]
[1741847417716,24.33748787,123.92,123.87,39.73038787]
[1741847417902,24.33748787,123.93,123.87,39.73038787]
[1741847418109,24.33748787,123.94,123.88,24.33748787]
[1741847418710,24.33748787,123.93,123.87,454.21278787]
[1741847418917,24.33748787,123.93,123.88,24.33748787]
[1741847419123,24.33748787,123.93,123.87,142.21278787]
[1741847419313,24.33748787,123.93,123.87,122.03038787]
[1741847419622,32.40658787,123.93,123.87,122.03038787]
[1741847419923,24.33748787,123.93,123.87,122.03038787]
[1741847420217,24.33748787,123.94,123.88,24.33748787]
[1741847420401,6.3287,123.96,123.89,24.33748787]
[1741847420602,24.33748787,123.96,123.9,24.33748787]
[1741847420919,24.33748787,123.95,123.91,7.32]
[1741847421101,24.33748787,123.94,123.91,7.32]
[1741847421306,24.33748787,123.93,123.91,7.32]
[1741847421903,24.33748787,123.93,123.89,8.0716]
[1741847422315,24.33748787,123.94,123.89,8.0716]
[1741847422527,0.03,123.96,123.89,114.70908787]
[1741847422727,32.43478787,123.96,123.89,90.3716]
[1741847422923,24.33748787,123.95,123.89,114.70908787]
[1741847423715,8.0973,123.96,123.89,114.70908787]
[1741847423929,32.43478787,123.96,123.9,24.33748787]
[1741847424105,32.43478787,123.96,123.9,25.90368787]
[1741847424423,24.33748787,123.95,123.9,9.6366]
[1741847425626,24.36748787,123.96,123.9,33.97408787]
[1741847425923,32.43468787,123.96,123.9,33.97408787]
[1741847426238,0.03,123.96,123.95,24.33748787]
[1741847426435,0.03,123.96,123.95,132.66713673]
[1741847427009,0.03,123.96,123.95,444.66713673]
[1741847427315,0.03,123.99,123.98,20.0]
[1741847427517,0.03,123.99,123.98,62.98713673]
[1741847427709,0.03,123.99,123.98,71.05293673]
[1741847428133,0.03,123.99,123.98,52.40328787]
[1741847428318,0.03,123.99,123.98,85.52367387]
[1741847428734,0.03,123.99,123.98,66.87402501]
[1741847428947,0.03,123.99,123.98,58.80822501]
[1741847431118,0.03,123.99,123.98,20.0]
[1741847431839,0.03,123.99,123.97,38.80822501]
[1741847432009,0.03,123.99,123.96,7.36]
[1741847433234,0.03,123.99,123.96,46.16822501]
[1741847433420,0.03,123.99,123.96,7.36]
[1741847436640,38.83822501,123.99,123.93,334.64822501]
[1741847436824,38.80822501,123.98,123.94,7.36]
[1741847437337,38.80822501,123.98,123.93,213.54]
[1741847437338,38.80822501,123.96,123.93,213.54]
[1741847437652,46.87592501,123.95,123.91,7.34]
[1741847438013,38.80822501,123.94,123.91,7.34]
[1741847438933,38.80822501,123.94,123.89,38.80822501]
[1741847439159,38.80822501,123.94,123.9,7.34]
[1741847439326,46.87592501,123.95,123.9,7.34]
[1741847439849,38.13871555,123.95,123.9,7.34]
[1741847440523,0.28432314,123.95,123.9,7.34]
[1741847440726,39.09254815,123.95,123.9,7.34]
[1741847440930,47.16024815,123.95,123.9,7.34]
[1741847441127,0.14216157,123.97,123.91,38.80822501]
[1741847441332,39.09254815,123.97,123.92,38.80822501]
[1741847441526,8.0658,123.98,123.92,38.80822501]
[1741847441732,39.09254815,123.98,123.93,38.80822501]
[1741847441928,38.80822501,123.98,123.93,38.80822501]
[1741847442121,0.03,123.99,123.94,46.14822501]
[1741847442326,0.03,123.99,123.95,38.80822501]
[1741847442530,0.03,123.99,123.96,38.80822501]
[1741847442930,0.03,123.99,123.94,89.64]
[1741847442931,0.03,123.99,123.97,58.80822501]
[1741847443242,0.03,123.99,123.98,46.14822501]
[1741847443631,0.03,123.99,123.98,7.34]
[1741847447549,0.03,123.99,123.98,54.21402501]
[1741847448238,0.03,123.99,123.98,72.86367387]
[1741847450751,0.03,123.99,123.96,0.063]
[1741847451462,0.03,123.99,123.96,38.87122501]
[1741847451863,0.03,123.99,123.96,0.063]
[1741847452052,0.03,123.99,123.96,38.87122501]
[1741847452232,0.03,123.99,123.96,0.063]
[1741847453747,8.0951,123.99,123.96,0.063]
[1741847454640,0.03,123.99,123.96,0.063]
[1741847454850,0.03,123.99,123.96,38.87122501]
[1741847455035,0.03,123.99,123.96,0.063]
[1741847455965,7.0947,124.0,123.96,0.063]
[1741847456147,45.90292501,124.0,123.96,0.063]
[1741847456759,38.80822501,123.99,123.96,0.063]
[1741847457366,27.2559,124.0,123.96,0.063]
[1741847457555,66.06412501,124.0,123.96,0.063]
[1741847457867,45.90292501,124.0,123.96,0.063]
[1741847458043,0.03,123.99,123.96,0.063]
[1741847459150,38.83822501,123.99,123.96,0.063]
[1741847460264,8.0658,123.98,123.96,0.063]
[1741847460642,24.56505206,123.97,123.96,0.063]
[1741847460839,24.28072892,123.97,123.96,0.063]
[1741847461041,32.34652892,123.98,123.96,0.063]
[1741847461340,32.37602892,123.99,123.96,0.063]
[1741847461542,0.03,123.99,123.96,0.063]
[1741847461840,24.28072892,123.98,123.96,0.063]
[1741847462268,8.0952,123.99,123.96,0.063]
[1741847462562,24.28072892,123.98,123.96,0.063]
[1741847463345,0.03,123.99,123.96,0.063]
[1741847463546,0.03,123.99,123.96,24.34372892]
[1741847463757,0.03,123.99,123.97,24.28072892]
[1741847464073,0.03,123.99,123.98,24.28072892]
[1741847464441,0.03,123.99,123.98,32.34652892]
[1741847465170,0.03,123.99,123.97,24.28072892]
[1741847465460,0.03,123.99,123.98,20.0]
[1741847466162,0.03,123.99,123.96,106.64372892]
[1741847466373,24.31072892,123.99,123.96,82.363]
[1741847466575,32.37642892,123.99,123.96,82.363]
[1741847467367,0.03,123.99,123.96,82.363]
[1741847467950,0.03,123.99,123.96,32.41082892]
[1741847468155,0.03,123.99,123.97,24.28072892]
[1741847468364,0.03,123.99,123.97,38.83224409]
[1741847468672,0.03,123.99,123.96,38.89524409]
[1741847468872,0.03,123.99,123.97,38.83224409]
[1741847469382,0.03,123.99,123.98,63.75859295]
[1741847469563,0.03,123.99,123.98,163.05859295]
[1741847470570,0.03,123.99,123.98,171.12439295]
[1741847471262,0.03,123.99,123.98,138.13224409]
[1741847471947,0.03,123.99,123.98,146.19804409]
[1741847472664,0.03,123.99,123.98,20.0]
[1741847474067,0.03,123.99,123.96,213.483]
[1741847474575,0.03,123.99,123.96,221.55]
[1741847474748,0.03,123.99,123.96,260.38224409]
[1741847475675,0.03,123.99,123.96,46.96224409]
[1741847475853,0.03,123.99,123.98,38.83224409]
[1741847476688,0.03,123.99,123.97,38.83224409]
[1741847477155,0.03,123.99,123.98,20.0]
[1741847478765,0.03,123.99,123.96,121.19524409]
[1741847479170,0.03,123.99,123.96,0.063]
[1741847479358,38.83224409,123.98,123.96,0.063]
[1741847479559,38.83224409,123.97,123.96,0.063]
[1741847479867,47.18296723,123.97,123.96,0.063]
[1741847480044,46.89864409,123.97,123.96,0.063]
[1741847480243,47.18296723,123.97,123.96,0.063]
[1741847480660,65.83261609,123.97,123.96,0.063]
[1741847480849,104.66486018,123.97,123.96,0.0001]
[1741847481051,65.83261609,123.97,123.96,0.0001]
[1741847481453,47.18296723,123.97,123.96,0.0001]
[1741847486078,45.09154409,123.99,123.96,0.0001]
[1741847486368,0.03,123.99,123.96,0.0001]
[1741847487981,0.03,123.99,123.96,38.83234409]
[1741847488149,0.03,123.99,123.97,46.15224409]
[1741847488857,0.03,123.99,123.97,7.32]
[1741847489569,39.14656723,123.99,123.96,0.0001]
[1741847489752,46.89864409,123.97,123.96,0.0001]
[1741847490458,47.18296723,123.97,123.96,0.0001]
[1741847491572,65.83261609,123.97,123.96,0.0001]
[1741847491779,0.03,123.99,123.96,0.0001]
[1741847492149,38.83224409,123.97,123.96,0.0001]
[1741847492375,39.11656723,123.97,123.96,0.0001]
[1741847492562,38.83224409,123.97,123.96,0.0001]
[1741847495081,47.04060566,123.98,123.96,0.0001]
[1741847496168,0.03,123.99,123.96,7.3601]
[1741847496360,38.83224409,123.98,123.96,7.3601]
[1741847497882,38.83224409,123.97,123.96,7.3601]
[1741847498282,24.576813,123.97,123.96,7.3601]
[1741847498472,24.576813,123.97,123.96,0.0001]
[1741847499377,24.29248986,123.97,123.96,0.0001]
[1741847499577,32.35838986,123.98,123.96,0.0001]
[1741847501379,24.29248986,123.98,123.96,0.0001]
[1741847501964,0.03,123.99,123.96,0.0001]
[1741847503389,0.03,123.99,123.94,33.52738986]
[1741847503765,24.29248986,123.98,123.93,89.64]
[1741847503968,24.29248986,123.97,123.93,89.64]
[1741847504670,8.0668,123.97,123.93,89.64]
[1741847505289,8.0668,123.97,123.93,82.3]
[1741847505463,8.0668,123.97,123.94,7.34]
[1741847506275,32.672213,123.99,123.94,7.34]
[1741847506867,8.37972314,123.99,123.94,7.34]
[1741847507073,32.672213,123.99,123.94,7.34]
[1741847507902,32.672213,123.99,123.94,7.403]
[1741847508686,24.29248986,123.97,123.95,7.32]
[1741847510691,24.29248986,123.97,123.94,0.063]
[1741847510875,32.35908986,123.97,123.94,7.383]
[1741847511874,0.03,123.99,123.95,24.29248986]
[1741847512197,0.03,123.99,123.96,24.29248986]
[1741847512666,0.03,123.99,123.98,32.35828986]
[1741847512870,0.03,123.99,123.98,39.67828986]
[1741847513403,0.03,123.99,123.98,140.62793872]
[1741847513905,0.03,123.99,123.98,121.97828986]
[1741847514272,0.03,123.99,123.98,155.14712667]
[1741847514681,0.03,123.99,123.98,136.49747781]
[1741847514993,0.03,123.99,123.98,448.49747781]
[1741847515406,0.03,123.99,123.98,440.43167781]
[1741847515700,0.03,123.99,123.98,433.11167781]
[1741847515897,0.03,123.99,123.98,128.43167781]
[1741847517497,0.03,123.99,123.98,155.14712667]
[1741847517873,0.03,123.99,123.98,90.13144981]
[1741847518109,0.03,123.99,123.98,172.43144981]
[1741847518489,0.03,123.99,123.98,385.56712667]
[1741847518878,0.03,123.99,123.98,697.56712667]
[1741847519075,0.03,123.99,123.98,697.70928824]
[1741847519687,0.03,123.99,123.98,697.85144981]
[1741847520216,0.03,123.99,123.98,697.56712667]
[1741847520998,0.03,123.99,123.98,678.91747781]
[1741847521181,0.03,123.99,123.98,661.91747781]
[1741847521376,0.03,123.99,123.98,680.56712667]
[1741847521732,0.03,123.99,123.98,697.85144981]
[1741847523083,0.03,124.0,123.99,25.561772]
[1741847523282,0.03,124.0,123.99,72.43854981]
[1741847525416,0.03,124.0,123.99,72.15422667]
[1741847525606,0.03,124.0,123.99,72.43854981]
[1741847526408,0.03,124.0,123.99,384.15422667]
[1741847526586,0.03,124.0,123.99,483.45422667]
[1741847526789,0.03,124.0,123.99,483.73854981]
[1741847527015,0.03,124.0,123.99,490.75422667]
[1741847527910,0.03,124.0,123.99,483.45422667]
[1741847528118,0.03,124.0,123.99,490.75422667]
[1741847532317,0.03,124.0,123.99,178.75422667]
[1741847532711,0.0001,124.0,123.99,179.03854981]
[1741847533394,0.03,124.05,124.03,20.0]
[1741847533617,0.03,124.05,124.04,46.09167781]
[1741847533809,0.03,124.05,124.04,147.04132667]
[1741847534385,0.03,124.05,124.04,128.39167781]
[1741847534586,0.03,124.05,124.04,82.3]
[1741847534813,0.03,124.05,124.02,38.81167781]
[1741847535014,0.03,124.05,124.03,7.3]
[1741847535527,39.12600095,124.05,124.0,38.81167781]
[1741847535822,39.12600095,124.05,124.01,7.3]
[1741847535994,39.12600095,124.05,123.99,213.34]
[1741847535995,0.28432314,124.03,123.99,220.64]
[1741847536193,38.84167781,124.05,124.0,38.81167781]
[1741847536515,24.25925172,124.04,123.99,244.89925172]
[1741847536746,0.17216157,124.05,123.99,244.89925172]
[1741847536899,8.0619,124.04,123.99,244.89925172]
[1741847537098,8.0619,124.04,124.0,24.25925172]
[1741847537410,8.0914,124.05,124.01,24.25925172]
[1741847538621,8.0914,124.05,124.01,336.25925172]
[1741847538918,8.0914,124.05,124.01,24.25925172]
[1741847539625,0.03,124.05,124.01,24.25925172]
[1741847540119,24.28925172,124.05,124.0,24.25925172]
[1741847540318,24.25925172,124.04,123.99,31.55925172]
[1741847540525,24.43141329,124.05,124.0,24.25925172]
[1741847541114,8.37602314,124.05,124.0,24.25925172]
[1741847542820,32.63527486,124.05,124.0,24.25925172]
[1741847543818,32.63527486,124.05,123.99,31.55925172]
[1741847544023,0.28432314,124.03,123.99,7.28]
[1741847544701,24.25925172,124.04,123.99,7.28]
[1741847544906,8.063,124.03,123.99,31.53925172]
[1741847545123,24.28925172,124.05,123.99,31.53925172]
[1741847545307,8.0619,124.04,123.99,39.60435172]
[1741847545493,8.0619,124.04,124.0,24.25925172]
[1741847545693,32.35075172,124.05,124.0,24.25925172]
[1741847546021,24.25925172,124.04,123.99,31.53925172]
[1741847546929,32.60607486,124.03,123.97,213.34]
[1741847547098,32.32175172,124.03,123.98,7.28]
[1741847547900,0.28432314,124.02,123.98,7.28]
[1741847548103,24.25925172,124.02,123.98,7.28]
[1741847548799,26.12857486,124.01,123.97,213.34]
[1741847549102,8.0645,124.0,123.97,220.62]
[1741847549322,32.32375172,124.0,123.97,213.34]
[1741847549606,24.25925172,123.99,123.96,7.28]
[1741847550425,24.25925172,123.97,123.94,0.063]
[1741847550606,24.25925172,123.97,123.94,7.343]
[1741847550808,24.25925172,123.98,123.94,7.343]
[1741847551031,32.32565172,123.98,123.94,7.343]
[1741847551611,29.48909594,123.98,123.94,7.343]
[1741847553229,8.0664,123.98,123.94,7.343]
[1741847553520,32.32565172,123.98,123.94,7.343]
[1741847554537,8.0645,124.0,123.94,31.60225172]
[1741847554741,0.28432314,123.99,123.94,39.67045172]
[1741847555027,24.54357486,123.99,123.94,39.67045172]
[1741847555225,32.60907486,123.99,123.94,39.67045172]
[1741847555625,25.98641329,124.01,123.95,24.25925172]
[1741847555807,83.1,124.03,123.97,44.25925172]
[1741847556011,8.0626,124.03,123.99,24.25925172]
[1741847557101,8.0626,124.03,123.98,7.28]
[1741847557102,32.32185172,124.03,123.98,31.53925172]
[1741847557419,24.25925172,124.02,123.98,7.28]
[1741847559527,8.0638,124.01,123.98,7.28]
[1741847560713,32.32305172,124.01,123.98,7.28]
[1741847561032,24.54357486,124.0,123.94,24.32225172]
[1741847561218,24.54357486,124.0,123.95,7.28]
[1741847561625,32.60847486,124.0,123.95,7.28]
[1741847562037,32.60847486,124.0,123.95,15.3477]
[1741847563040,32.32315172,124.01,123.96,24.25925172]
[1741847563335,8.0639,124.01,123.96,24.25925172]
[1741847563736,32.32315172,124.01,123.96,24.25925172]
[1741847564029,32.32315172,124.01,123.95,31.53925172]
[1741847565418,24.25925172,124.0,123.95,31.53925172]
[1741847565936,32.60867486,123.99,123.95,7.28]
[1741847566120,24.25925172,123.98,123.95,7.28]
[1741847567633,8.0664,123.97,123.95,7.28]
[1741847568436,8.0658,123.98,123.95,7.28]
[1741847569140,10.01202314,124.0,123.95,31.53925172]
[1741847569315,34.27127486,124.0,123.95,31.53925172]
[1741847569931,34.27127486,124.0,123.95,7.28]
[1741847570128,33.98695172,124.0,123.95,15.3477]
[1741847570337,33.98695172,124.0,123.95,31.53925172]
[1741847570754,33.98695172,124.0,123.95,7.28]
[1741847571350,24.54357486,123.99,123.95,7.28]
[1741847571551,24.25925172,123.98,123.95,7.28]
[1741847572454,8.0664,123.97,123.95,7.28]
[1741847572840,32.32565172,123.97,123.94,7.343]
[1741847573360,8.0664,123.97,123.94,7.343]